bitfinex/quotes_SOLUSD_20250527
["timestamp","ask_amount","ask_price","bid_price","bid_amount"]
[1748357128244,1.69702455,176.78,176.76,37.2]
[1748357128815,1.69702455,176.78,176.75,26.6985658]
[1748357129443,26.6985658,176.76,176.72,37.2]
[1748357130347,4.24148399,176.83,176.74,26.6985658]
[1748357130652,1.69625692,176.86,176.78,26.0]
[1748357130851,1.69625692,176.86,176.79,63.2]
[1748357131351,18.64964886,176.85,176.81,26.6985658]
[1748357131655,45.34821466,176.85,176.79,63.8985658]
[1748357132033,18.64964886,176.83,176.79,26.6985658]
[1748357132230,1.69664065,176.82,176.79,26.6985658]
[1748357132431,18.64964886,176.81,176.78,63.8985658]
[1748357132932,18.64964886,176.81,176.78,26.6985658]
[1748357133331,18.64964886,176.85,176.8,26.6985658]
[1748357133530,45.34821466,176.85,176.8,26.6985658]
[1748357134061,18.64964886,176.83,176.79,26.6985658]
[1748357134236,1.69664065,176.82,176.79,26.6985658]
[1748357134551,18.64964886,176.81,176.74,26.6985658]
[1748357134860,1.69616102,176.87,176.79,26.0]
[1748357135059,18.64964886,176.86,176.84,26.6985658]
[1748357135241,18.64964886,176.86,176.85,26.6985658]
[1748357135449,1.69616102,176.87,176.85,26.6985658]
[1748357135635,18.64964886,176.9,176.86,26.6985658]
[1748357135830,10.52,176.91,176.88,26.6985658]
[1748357135831,1.69577751,176.91,176.88,26.6985658]
[1748357136263,18.64964886,176.9,176.88,26.6985658]
[1748357136559,30.23870599,176.95,176.88,26.6985658]
[1748357136560,18.64964886,176.93,176.88,26.6985658]
[1748357136755,20.34523468,176.93,176.88,26.6985658]
[1748357136941,20.34523468,176.93,176.85,43.4144861]
[1748357137140,20.34523468,176.93,176.9,26.6985658]
[1748357137461,18.64964886,176.93,176.91,26.6985658]
[1748357137672,18.64964886,176.93,176.9,26.6985658]
[1748357138165,18.64964886,176.93,176.86,26.0]
[1748357138339,20.34526758,176.93,176.9,26.6985658]
[1748357139238,20.34526758,176.93,176.86,31.65414901]
[1748357139854,20.34526758,176.93,176.91,26.6985658]
[1748357140427,1.69540242,176.95,176.87,5.65381916]
[1748357140657,26.14216157,176.99,176.94,26.6985658]
[1748357140658,18.64964886,176.99,176.94,26.6985658]
[1748357140866,18.64964886,176.99,176.93,44.6897]
[1748357141220,26.6985658,177.03,176.97,26.6985658]
[1748357141364,45.34821466,177.02,176.97,26.6985658]
[1748357141534,18.64964886,177.03,176.97,26.6985658]
[1748357141862,26.6985658,177.02,176.97,26.6985658]
[1748357142039,18.64964886,177.0,176.94,27.5303]
[1748357142241,18.64964886,177.0,176.98,26.6985658]
[1748357142563,18.64964886,177.0,176.94,27.5303]
[1748357142868,10.70113173,177.12,176.96,26.0]
[1748357142869,1.69443659,177.05,176.96,26.0]
[1748357143255,18.64964886,177.03,176.96,28.80802619]
[1748357143443,18.64964886,177.03,176.97,38.58]
[1748357143636,18.64964886,177.03,177.0,26.6985658]
[1748357144238,11.18,177.07,177.02,26.6985658]
[1748357144451,18.64964886,177.06,177.03,26.6985658]
[1748357144659,18.64964886,177.06,177.04,26.6985658]
[1748357144989,45.34821466,177.06,177.0,26.0]
[1748357145187,18.64964886,177.06,177.0,26.0]
[1748357145367,45.34821466,177.06,177.0,26.0]
[1748357145873,18.64964886,177.04,177.0,52.6985658]
[1748357146386,11.18,177.13,177.03,26.6985658]
[1748357146604,11.18,177.13,177.09,26.6985658]
[1748357146605,1.69367131,177.13,177.09,26.6985658]
[1748357146779,12.98996717,177.16,177.11,26.6985658]
[1748357146963,14.68336941,177.16,177.08,38.7]
[1748357147159,14.68336941,177.16,177.13,26.6985658]
[1748357147395,12.98996717,177.16,177.13,26.6985658]
[1748357147566,12.98996717,177.16,177.15,26.6985658]
[1748357149562,12.98996717,177.16,177.15,6.032]
[1748357149802,12.98996717,177.16,177.15,6.17416157]
[1748357150010,12.98996717,177.16,177.15,32.87272737]
[1748357150511,11.32336717,177.16,177.15,6.17416157]
[1748357150671,11.32336717,177.16,177.15,32.87272737]
[1748357150998,11.32336717,177.16,177.15,58.7305658]
[1748357152098,13.01675168,177.16,177.13,26.0]
[1748357152276,13.01675168,177.16,177.15,0.5]
[1748357152462,13.01675168,177.16,177.13,52.6985658]
[1748357152662,13.01675168,177.16,177.14,26.6985658]
[1748357153077,13.01675168,177.16,177.15,26.6985658]
[1748357153600,13.01675168,177.16,177.13,26.0]
[1748357153899,13.01675168,177.16,177.15,26.6985658]
[1748357154110,13.01675168,177.16,177.13,26.0]
[1748357154265,13.01675168,177.16,177.14,26.6985658]
[1748357154465,13.01675168,177.16,177.13,26.0]
[1748357154705,13.01675168,177.16,177.15,26.6985658]
[1748357154868,13.01675168,177.16,177.13,26.0]
[1748357155069,13.01675168,177.16,177.15,66.4985658]
[1748357155266,11.32336717,177.16,177.15,66.4985658]
[1748357155504,13.01675168,177.16,177.15,66.4985658]
[1748357155681,13.01675168,177.16,177.15,39.8]
[1748357155880,17.25021295,177.16,177.12,66.5585658]
[1748357156225,17.25021295,177.16,177.13,26.6985658]
[1748357156497,17.25021295,177.16,177.12,39.86]
[1748357156698,17.25021295,177.16,177.13,26.6985658]
[1748357157372,17.25021295,177.16,177.14,26.6985658]
[1748357157690,17.25021295,177.16,177.15,26.6985658]
[1748357157691,13.01675168,177.16,177.15,26.6985658]
[1748357157870,13.01675168,177.16,177.12,39.84]
[1748357158071,17.25021295,177.16,177.14,26.6985658]
[1748357158281,13.01675168,177.16,177.14,26.6985658]
[1748357159010,13.01675168,177.16,177.12,40.34]
[1748357159206,13.01675168,177.16,177.15,26.6985658]
[1748357159675,13.01675168,177.16,177.14,26.6985658]
[1748357159879,13.01675168,177.16,177.11,26.0]
[1748357160100,13.01675168,177.16,177.13,66.5385658]
[1748357160484,13.01675168,177.16,177.14,26.6985658]
[1748357160805,13.01675168,177.16,177.13,26.6985658]
[1748357160975,17.25021295,177.16,177.13,26.6985658]
[1748357161578,45.34821466,177.15,177.1,6.0366]
[1748357161769,45.34821466,177.15,177.06,13.6002]
[1748357161770,45.34821466,177.13,177.07,26.6985658]
[1748357161974,18.64964886,177.13,177.02,6.5376]
[1748357162223,18.64964886,177.12,177.02,6.5376]
[1748357162503,1.69424521,177.07,177.02,59.2361658]
[1748357162701,1.69424521,177.07,177.06,26.6985658]
[1748357162874,1.69395821,177.1,177.06,26.6985658]
[1748357163071,1.69395821,177.1,177.09,26.6985658]
[1748357163582,1.69367131,177.13,177.09,26.6985658]
[1748357163837,1.69367131,177.13,177.11,26.6985658]
[1748357164096,1.6934801,177.15,177.12,26.6985658]
[1748357164773,1.6934801,177.15,177.13,26.6985658]
[1748357165095,1.6934801,177.15,177.11,40.24]
[1748357165304,1.6934801,177.15,177.12,26.6985658]
[1748357165681,5.92718035,177.15,177.11,66.9385658]
[1748357165889,24.57682921,177.15,177.11,40.24]
[1748357166096,24.57682921,177.15,177.1,26.6985658]
[1748357166097,51.27539501,177.15,177.1,26.6985658]
[1748357166283,45.34821466,177.14,177.09,26.6985658]
[1748357166684,18.64964886,177.13,177.09,26.6985658]
[1748357167297,18.64964886,177.13,177.08,66.8785658]
[1748357167493,18.64964886,177.14,177.05,26.0]
[1748357167703,18.64964886,177.11,177.07,26.6985658]
[1748357168407,45.34821466,177.11,177.06,27.1985658]
[1748357168701,32.62641539,177.13,177.08,26.6985658]
[1748357168877,32.62641539,177.13,177.06,40.6]
[1748357168878,5.92784959,177.13,177.1,26.6985658]
[1748357169274,5.92784959,177.13,177.09,26.6985658]
[1748357169685,5.92784959,177.13,177.1,26.6985658]
[1748357170005,1.69367131,177.13,177.11,26.6985658]
[1748357170477,1.69367131,177.13,177.1,40.04]
[1748357170801,5.92770482,177.14,177.1,66.7385658]
[1748357171006,5.92770482,177.14,177.1,40.04]
[1748357171255,32.62627062,177.14,177.06,26.0]
[1748357171405,5.92770482,177.14,177.09,26.6985658]
[1748357171575,5.92770482,177.14,177.06,26.0]
[1748357171781,5.92770482,177.14,177.1,26.6985658]
[1748357172012,5.92770482,177.14,177.11,26.6985658]
[1748357172314,5.92770482,177.14,177.07,40.22]
[1748357172605,5.92851899,177.11,177.07,26.6985658]
[1748357173700,18.64964886,177.1,177.02,18.6376]
[1748357173892,26.6985658,177.07,177.02,12.1]
[1748357174088,26.6985658,177.07,176.96,2.80802619]
[1748357174089,18.64964886,177.06,176.97,6.5522]
[1748357174398,45.34821466,177.06,176.97,46.7322]
[1748357174600,1.6945323,177.04,177.0,26.6985658]
[1748357174789,1.6945323,177.04,177.01,26.6985658]
[1748357174992,1.6945323,177.04,177.02,26.6985658]
[1748357175191,1.6945323,177.04,177.03,26.6985658]
[1748357175507,1.6945323,177.04,176.99,26.6985658]
[1748357175709,28.3930981,177.04,176.99,26.6985658]
[1748357175891,32.62942887,177.04,176.98,40.28]
[1748357176095,32.62942887,177.04,176.99,26.6985658]
[1748357176304,1.69395821,177.1,177.03,26.6985658]
[1748357176612,32.62574615,177.15,177.09,26.6985658]
[1748357176815,26.6985658,177.14,177.09,26.6985658]
[1748357177016,26.6985658,177.13,177.04,40.26]
[1748357177317,45.34821466,177.09,177.04,26.6985658]
[1748357177614,18.64964886,177.14,177.05,26.0]
[1748357177816,18.64964886,177.14,177.11,26.6985658]
[1748357177992,18.64964886,177.14,177.1,26.6985658]
[1748357178192,18.64964886,177.12,177.07,40.5]
[1748357178398,18.64964886,177.14,177.08,26.6985658]
[1748357178598,18.64964886,177.12,177.08,26.6985658]
[1748357178799,1.69386257,177.11,177.05,40.5]
[1748357179006,1.69386257,177.11,177.07,26.6985658]
[1748357179200,5.92851899,177.11,177.07,26.6985658]
[1748357179513,5.92851899,177.11,177.1,26.6985658]
[1748357179821,5.92851899,177.11,177.09,26.6985658]
[1748357180125,5.92851899,177.11,177.05,40.46]
[1748357180289,45.34821466,177.1,177.01,38.56]
[1748357180495,45.34821466,177.1,177.05,26.6985658]
[1748357181009,1.69405387,177.09,177.08,26.6985658]
[1748357181182,1.69405387,177.09,177.02,40.44]
[1748357181710,8.4674005,177.15,177.02,40.44]
[1748357181711,1.69367131,177.13,177.08,26.6985658]
[1748357181903,1.69367131,177.13,177.11,26.6985658]
[1748357182106,1.69367131,177.13,177.07,46.4842]
[1748357182316,26.6985658,177.11,177.07,40.42]
[1748357182518,18.64964886,177.12,177.07,67.1185658]
[1748357182719,18.64964886,177.12,177.08,26.6985658]
[1748357182922,1.69386257,177.11,177.08,26.6985658]
[1748357183117,1.69386257,177.11,177.09,0.5]
[1748357184201,1.69386257,177.11,177.1,26.6985658]
[1748357184402,1.69386257,177.11,177.09,0.5]
[1748357185228,1.69376693,177.12,177.09,27.1985658]
[1748357185533,1.69376693,177.12,177.09,0.5]
[1748357185834,28.39233273,177.12,177.09,0.5]
[1748357186269,1.69376693,177.12,177.09,0.5]
[1748357186536,26.6985658,177.11,177.09,0.5]
[1748357186706,1.69376693,177.12,177.09,0.5]
[1748357186914,1.69376693,177.12,177.09,27.1985658]
[1748357187109,1.69376693,177.12,177.11,26.6985658]
[1748357187429,1.69376693,177.12,177.1,26.6985658]
[1748357187634,5.92818427,177.12,177.05,40.28]
[1748357187808,45.34821466,177.11,177.02,32.0642]
[1748357188003,5.92818427,177.12,177.02,32.0642]
[1748357188004,18.64964886,177.07,177.02,6.0642]
[1748357188210,45.34821466,177.07,177.02,32.7627658]
[1748357188936,45.34821466,177.06,177.01,26.6985658]
[1748357189108,1.69443659,177.05,177.01,26.6985658]
[1748357189816,1.69443659,177.05,177.03,26.6985658]
[1748357190325,1.69443659,177.05,176.99,40.34]
[1748357190510,1.69443659,177.05,177.01,26.6985658]
[1748357190705,1.69443659,177.05,176.99,40.3]
[1748357190911,1.69443659,177.05,177.02,26.6985658]
[1748357191133,5.93028539,177.06,177.02,26.6985658]
[1748357192008,5.93028539,177.06,176.99,40.3]
[1748357192009,1.6943409,177.06,177.03,26.6985658]
[1748357192524,1.6943409,177.06,177.05,26.6985658]
[1748357192924,1.6943409,177.06,177.02,26.0]
[1748357193240,4.23529481,177.09,177.05,26.6985658]
[1748357194620,1.69395821,177.1,177.08,26.6985658]
[1748357195041,5.92885374,177.1,177.04,40.24]
[1748357195230,32.62741954,177.1,177.05,26.6985658]
[1748357195637,1.69395821,177.1,177.07,26.6985658]
[1748357196261,5.92885374,177.1,177.06,26.6985658]
[1748357196445,5.92885374,177.1,177.04,40.24]
[1748357196645,32.62741954,177.1,177.05,26.6985658]
[1748357196844,5.92885374,177.1,177.05,26.6985658]
[1748357197228,26.6985658,177.11,177.05,26.6985658]
[1748357197430,26.6985658,177.11,177.06,26.6985658]
[1748357197831,26.6985658,177.11,177.05,26.6985658]
[1748357198033,26.6985658,177.09,177.04,26.6985658]
[1748357198264,26.6985658,177.09,177.07,0.5]
[1748357198448,18.64964886,177.13,177.06,26.6985658]
[1748357198754,26.6985658,177.12,177.07,26.6985658]
[1748357199064,31.92751495,177.14,177.07,26.6985658]
[1748357199239,1.69367131,177.13,177.1,26.6985658]
[1748357199857,1.69367131,177.13,177.03,147.10862923]
[1748357199858,1.69367131,177.13,177.09,26.6985658]
[1748357200056,1.69367131,177.13,177.03,147.10862923]
[1748357200266,5.92751495,177.14,177.1,26.6985658]
[1748357200434,32.62608075,177.14,177.08,40.04]
[1748357200634,1.6935757,177.14,177.1,26.6985658]
[1748357200872,1.6935757,177.14,177.11,26.6985658]
[1748357201154,26.6985658,177.13,177.08,40.04]
[1748357201355,26.6985658,177.13,177.08,66.7385658]
[1748357201741,26.6985658,177.11,177.06,26.6985658]
[1748357201933,26.6985658,177.11,177.05,26.6985658]
[1748357202334,1.69395821,177.1,177.06,26.6985658]
[1748357203132,1.69395821,177.1,177.07,0.5]
[1748357203569,5.92885374,177.1,177.07,0.5]
[1748357204461,32.62741954,177.1,177.07,0.5]
[1748357204661,5.92885374,177.1,177.07,0.5]
[1748357205437,32.62741954,177.1,177.07,0.5]
[1748357205634,32.62741954,177.1,177.05,26.6985658]
[1748357205840,32.62741954,177.1,177.02,46.0202]
[1748357206037,32.62741954,177.1,177.05,26.6985658]
[1748357206449,1.6934801,177.15,177.12,26.0]
[1748357206763,11.32336717,177.16,177.14,26.6985658]
[1748357206970,4.0757025,177.21,177.15,52.6985658]
[1748357207176,4.0757025,177.21,177.2,26.6985658]
[1748357207961,4.0757025,177.21,177.18,39.82]
[1748357208269,4.0757025,177.21,177.2,26.6985658]
[1748357209244,4.0757025,177.21,177.18,39.82]
[1748357209445,4.0757025,177.21,177.2,26.6985658]
[1748357210371,4.0757025,177.21,177.2,32.9099658]
[1748357210765,4.0757025,177.21,177.2,33.55212737]
[1748357210968,4.0757025,177.21,177.2,59.05212737]
[1748357211751,3.96711706,177.28,177.23,26.0]
[1748357212061,5.65936827,177.28,177.24,39.82]
[1748357212266,5.65936827,177.28,177.25,26.6985658]
[1748357212443,5.65936827,177.28,177.26,26.6985658]
[1748357212858,5.65936827,177.28,177.25,26.6985658]
[1748357213160,5.65936827,177.28,177.26,26.6985658]
[1748357213553,3.96711706,177.28,177.27,26.6985658]
[1748357213756,5.65935532,177.28,177.27,26.6985658]
[1748357214482,5.65935532,177.28,177.23,26.0]
[1748357214666,32.35792112,177.28,177.23,39.78]
[1748357214866,26.6985658,177.27,177.22,38.9185658]
[1748357215063,36.58851678,177.28,177.23,26.6985658]
[1748357215679,9.88995098,177.28,177.24,26.6985658]
[1748357215881,36.58851678,177.28,177.24,0.5]
[1748357217084,26.6985658,177.27,177.24,0.5]
[1748357217568,26.6985658,177.26,177.24,0.5]
[1748357217771,26.84736158,177.28,177.24,0.5]
[1748357217772,45.34821466,177.25,177.24,0.5]
[1748357217965,45.34821466,177.25,177.17,39.66]
[1748357218160,26.6985658,177.23,177.18,26.6985658]
[1748357219168,26.6985658,177.22,177.17,26.6985658]
[1748357219382,26.6985658,177.22,177.16,58.4754]
[1748357219668,5.92483917,177.22,177.16,18.8754]
[1748357219869,5.92483917,177.22,177.16,38.9185658]
[1748357220084,26.6985658,177.21,177.16,38.9185658]
[1748357220394,18.64964886,177.21,177.16,15.03023087]
[1748357220709,26.6985658,177.19,177.14,26.6985658]
[1748357220915,18.64964886,177.21,177.14,26.6985658]
[1748357221213,5.92483917,177.22,177.16,26.6985658]
[1748357221381,32.62340497,177.22,177.16,26.6985658]
[1748357221897,32.62340497,177.22,177.16,29.48143762]
[1748357222781,32.62340497,177.22,177.17,26.6985658]
[1748357223318,1.69281119,177.22,177.18,26.6985658]
[1748357223475,1.69281119,177.22,177.2,26.6985658]
[1748357224298,49.57966137,177.25,177.21,26.6985658]
[1748357224299,1.69262017,177.24,177.21,26.6985658]
[1748357224497,8.19775693,177.28,177.23,26.6985658]
[1748357224684,1.69233372,177.27,177.26,26.6985658]
[1748357224999,28.39089952,177.27,177.22,39.44]
[1748357225199,26.6985658,177.26,177.2,26.6985658]
[1748357225425,26.6985658,177.25,177.2,26.6985658]
[1748357225621,45.34821466,177.24,177.19,66.1385658]
[1748357225918,5.92316804,177.27,177.2,26.6985658]
[1748357226122,1.69252468,177.25,177.22,26.6985658]
[1748357226680,1.69252468,177.25,177.23,26.6985658]
[1748357226979,1.69252468,177.25,177.22,26.6985658]
[1748357227179,18.64964886,177.22,177.16,1.5821]
[1748357227405,18.64964886,177.22,177.14,6.6585]
[1748357227406,26.6985658,177.2,177.14,46.0385]
[1748357227651,18.64964886,177.24,177.15,26.6985658]
[1748357227807,5.92383638,177.25,177.2,26.6985658]
[1748357228135,18.64964886,177.25,177.14,9.43354256]
[1748357228337,26.6985658,177.22,177.16,26.6985658]
[1748357228500,45.34821466,177.24,177.19,26.6985658]
[1748357228798,26.6985658,177.24,177.19,26.6985658]
[1748357228997,26.6985658,177.24,177.18,26.6985658]
[1748357229227,26.6985658,177.23,177.14,35.43354256]
[1748357229727,26.6985658,177.22,177.16,26.6985658]
[1748357230125,32.62407369,177.2,177.15,26.6985658]
[1748357231007,5.92550789,177.2,177.16,27.1985658]
[1748357232131,4.23250564,177.2,177.17,26.6985658]
[1748357232335,4.23250564,177.2,177.16,0.5]
[1748357232627,4.23250564,177.2,177.16,27.1985658]
[1748357232831,1.69290672,177.21,177.17,26.6985658]
[1748357233135,1.69290672,177.21,177.18,26.6985658]
[1748357233542,1.69290672,177.21,177.17,26.6985658]
[1748357233839,5.92517352,177.21,177.17,26.6985658]
[1748357234336,26.6985658,177.23,177.17,26.6985658]
[1748357234527,5.92417061,177.24,177.17,26.6985658]
[1748357234718,5.92417061,177.24,177.2,26.6985658]
[1748357235237,32.62273641,177.24,177.17,39.38]
[1748357235540,32.62273641,177.24,177.18,26.6985658]
[1748357236034,18.64964886,177.23,177.18,26.6985658]
[1748357236238,5.92517352,177.21,177.17,66.0785658]
[1748357236540,5.92517352,177.21,177.18,26.6985658]
[1748357237434,5.92517352,177.21,177.17,39.38]
[1748357237636,1.69290672,177.21,177.2,26.6985658]
[1748357237840,1.69290672,177.21,177.19,26.6985658]
[1748357238048,1.69290672,177.21,177.18,26.6985658]
[1748357238254,1.69281119,177.22,177.17,26.6985658]
[1748357238433,1.69281119,177.22,177.15,39.32]
[1748357238620,1.69281119,177.22,177.17,26.6985658]
[1748357238944,4.2322668,177.21,177.18,26.6985658]
[1748357239131,4.2322668,177.21,177.19,26.6985658]
[1748357239722,1.69281119,177.22,177.19,26.6985658]
[1748357240037,1.69281119,177.22,177.2,26.6985658]
[1748357240239,32.62287948,177.24,177.15,128.12]
[1748357240541,32.62287948,177.24,177.19,26.6985658]
[1748357241251,32.62287948,177.24,177.15,128.12]
[1748357241418,4.23169351,177.24,177.15,128.12]
[1748357241825,4.23169351,177.24,177.22,26.6985658]
[1748357242023,4.23169351,177.24,177.21,26.6985658]
[1748357242451,4.23169351,177.24,177.2,39.28]
[1748357242612,45.34821466,177.23,177.15,88.8]
[1748357242819,26.6985658,177.22,177.17,65.9585658]
[1748357243415,5.92517352,177.21,177.17,39.26]
[1748357243642,5.92517352,177.21,177.17,65.9585658]
[1748357244250,5.92517352,177.21,177.17,39.26]
[1748357244627,32.62373932,177.21,177.14,9.42095134]
[1748357244817,26.6985658,177.17,177.14,2.76245134]
[1748357245019,26.6985658,177.17,177.12,65.8985658]
[1748357245236,26.6985658,177.17,177.11,13.8656]
[1748357245237,18.64964886,177.2,177.1,6.6617]
[1748357245617,26.6985658,177.15,177.1,6.6617]
[1748357245841,26.6985658,177.15,177.1,9.50416979]
[1748357246231,18.64964886,177.18,177.11,0.5]
[1748357246435,26.6985658,177.15,177.11,0.5]
[1748357247645,1.6935757,177.14,177.11,0.5]
[1748357247837,28.3921415,177.14,177.11,0.5]
[1748357248225,18.0921415,177.14,177.11,0.5]
[1748357249430,26.6985658,177.13,177.11,0.5]
[1748357249631,32.62675007,177.12,177.06,100.7]
[1748357249855,26.6985658,177.1,177.06,11.9]
[1748357250056,5.92818427,177.12,177.06,11.9]
[1748357250229,5.92818427,177.12,177.06,38.5985658]
[1748357250429,5.92818427,177.12,177.07,26.6985658]
[1748357250652,32.62675007,177.12,177.07,26.6985658]
[1748357250852,1.69376693,177.12,177.1,26.6985658]
[1748357251127,1.6935757,177.14,177.11,26.6985658]
[1748357251482,1.6935757,177.14,177.1,26.6985658]
[1748357251774,30.93238125,177.15,177.1,26.6985658]
[1748357252972,26.6985658,177.15,177.1,26.6985658]
[1748357253773,1.6935757,177.14,177.1,26.6985658]
[1748357254272,32.62608075,177.14,177.09,26.6985658]
[1748357254433,26.6985658,177.1,177.07,0.5]
[1748357254931,26.6985658,177.11,177.07,0.5]
[1748357255361,26.6985658,177.08,177.07,0.5]
[1748357255557,45.34821466,177.08,177.07,0.5]
[1748357255775,45.34821466,177.08,177.02,26.6985658]
[1748357255776,5.92985824,177.07,177.02,26.6985658]
[1748357255941,5.92985824,177.07,177.03,26.6985658]
[1748357257136,32.62842404,177.07,177.02,26.6985658]
[1748357257536,5.92985824,177.07,177.02,26.6985658]
[1748357257837,32.62842404,177.07,177.02,26.6985658]
[1748357258428,26.6985658,177.04,176.99,11.92]
[1748357258738,26.6985658,177.04,176.99,50.7]
[1748357258938,26.6985658,177.05,177.0,26.6985658]
[1748357259755,5.93086307,177.04,177.0,26.6985658]
[1748357260237,5.93086307,177.04,176.99,11.92]
[1748357260238,32.62942887,177.04,176.99,11.92]
[1748357260455,32.62942887,177.04,176.99,38.6185658]
[1748357261128,26.6985658,177.0,176.93,13.0984]
[1748357261435,5.93086307,177.04,176.99,26.6985658]
[1748357261638,5.93086307,177.04,177.0,26.6985658]
[1748357261933,5.93086307,177.04,176.94,39.28490377]
[1748357262138,5.93086307,177.04,177.0,26.6985658]
[1748357262548,5.93086307,177.04,177.01,26.6985658]
[1748357263065,32.62942887,177.04,176.99,26.6985658]
[1748357263740,26.6985658,177.03,176.98,26.6985658]
[1748357264264,5.93086307,177.04,176.97,38.68]
[1748357264265,5.93153316,177.02,176.97,38.68]
[1748357264640,5.93153316,177.02,176.98,26.6985658]
[1748357264865,5.93153316,177.02,176.97,38.68]
[1748357265041,5.93153316,177.02,176.99,26.6985658]
[1748357265239,5.93153316,177.02,176.98,26.6985658]
[1748357265440,5.93153316,177.02,176.97,38.68]
[1748357265640,5.93153316,177.02,176.98,26.6985658]
[1748357266376,1.69472376,177.02,177.01,26.6985658]
[1748357267039,11.48,177.08,177.01,26.6985658]
[1748357267040,1.6945323,177.04,177.01,26.6985658]
[1748357267241,1.6945323,177.04,177.03,26.6985658]
[1748357267441,4.23370025,177.15,177.03,28.2456658]
[1748357267637,4.23370025,177.15,177.11,26.6985658]
[1748357268152,5.92718035,177.15,177.11,16.61287105]
[1748357268455,5.92718035,177.15,177.07,26.0]
[1748357268660,22.5400514,177.15,177.1,16.61287105]
[1748357268839,22.5400514,177.15,177.05,0.14216157]
[1748357269040,16.61287105,177.12,177.07,16.61287105]
[1748357269249,16.61287105,177.13,177.07,16.61287105]
[1748357269460,16.61287105,177.13,177.08,16.61287105]
[1748357269974,26.59110604,177.13,177.07,26.59110604]
[1748357270185,5.92818427,177.12,177.07,26.59110604]
[1748357270868,45.2407549,177.11,177.03,1.5471]
[1748357271051,71.2407549,177.11,177.06,26.59110604]
[1748357271544,26.59110604,177.1,177.05,26.59110604]
[1748357271748,45.2407549,177.09,177.08,0.5]
[1748357271951,71.2407549,177.09,177.02,65.67110604]
[1748357272253,1.69424521,177.07,177.05,26.59110604]
[1748357272453,1.69424521,177.07,177.06,26.59110604]
[1748357272657,1.69424521,177.07,177.05,26.59110604]
[1748357273975,1.69414953,177.08,177.05,26.59110604]
[1748357274458,1.69414953,177.08,177.07,26.59110604]
[1748357274659,1.69414953,177.08,177.02,39.08]
[1748357274660,1.69414953,177.08,177.02,127.88]
[1748357276284,5.92895845,177.1,177.03,0.5]
[1748357277051,5.92895845,177.1,177.05,26.59110604]
[1748357277583,5.92895845,177.1,177.03,0.5]
[1748357277767,5.92895845,177.1,177.04,26.59110604]
[1748357277768,18.64964886,177.09,177.04,26.59110604]
[1748357278263,1.69414953,177.08,177.04,26.59110604]
[1748357278789,18.64964886,177.07,177.03,0.5]
[1748357278995,31.92952337,177.08,177.03,0.5]
[1748357278996,18.64964886,177.04,177.03,0.5]
[1748357279161,18.64964886,177.04,177.0,26.59110604]
[1748357279682,18.64964886,177.04,176.99,1.5212]
[1748357279873,18.64964886,177.04,177.0,26.59110604]
[1748357280055,18.64964886,177.04,176.99,1.5212]
[1748357280257,1.69462802,177.03,177.0,26.59110604]
[1748357280894,1.69462802,177.03,177.02,26.59110604]
[1748357281184,1.6943409,177.06,177.02,65.43110604]
[1748357281374,1.6943409,177.06,177.05,26.59110604]
[1748357281986,1.6943409,177.06,177.04,26.59110604]
[1748357282279,18.64964886,177.08,177.02,38.84]
[1748357282482,18.64964886,177.08,177.04,26.59110604]
[1748357282671,45.2407549,177.08,177.03,26.59110604]
[1748357282867,18.64964886,177.05,177.01,26.59110604]
[1748357283068,18.64964886,177.03,176.99,26.59110604]
[1748357283383,18.64964886,177.03,176.98,26.59110604]
[1748357283585,26.59110604,177.04,176.99,26.59110604]
[1748357283760,18.64964886,177.04,176.99,26.59110604]
[1748357284286,1.69472376,177.02,176.99,26.59110604]
[1748357284789,18.64964886,177.01,176.95,13.0019]
[1748357284984,18.64964886,177.01,176.97,26.59110604]
[1748357285362,1.69472376,177.02,176.98,38.8]
[1748357285561,1.69472376,177.02,177.01,26.59110604]
[1748357286195,1.69472376,177.02,176.98,38.8]
[1748357286359,1.6945323,177.04,177.01,26.59110604]
[1748357286675,1.6943409,177.06,177.03,26.59110604]
[1748357286886,1.6943409,177.06,177.02,38.8]
[1748357287060,18.64964886,177.05,177.02,38.8]
[1748357287260,5.93019315,177.06,177.03,26.59110604]
[1748357287456,1.6943409,177.06,177.04,26.59110604]
[1748357288288,18.64964886,177.05,176.98,95.4431]
[1748357288463,1.6945323,177.04,177.01,26.59110604]
[1748357289678,1.6945323,177.04,177.02,26.59110604]
[1748357290970,1.6945323,177.04,177.01,26.59110604]
[1748357291290,18.64964886,177.07,177.03,27.09110604]
[1748357291593,26.0,177.06,177.02,26.59110604]
[1748357292187,26.0,177.06,176.99,38.74]
[1748357292489,26.0,177.06,177.03,26.59110604]
[1748357292888,1.69443659,177.05,177.03,26.59110604]
[1748357293488,26.0,177.06,177.04,26.59110604]